[Event "*** Titled Tuesday Blitz"]
[Site "Chess.com"]
[Date "2018.11.06"]
[Round "10"]
[White "matiss90"]
[Black "PowerThinking2650"]
[Result "1-0"]
[WhiteElo "2414"]
[BlackElo "2299"]
[TimeControl "180+2"]
[EndTime "15:22:18 PST"]
[Termination "matiss90 won by resignation"]

1. e4 {[%clk 0:03:01.9]} 1... e5 {[%clk 0:03:00.2]} 2. Nf3 {[%clk 0:03:02.9]}
2... Nc6 {[%clk 0:03:01.6]} 3. Bb5 {[%clk 0:03:04]} 3... a6 {[%clk 0:03:02.3]}
4. Ba4 {[%clk 0:03:04.8]} 4... Nf6 {[%clk 0:03:02.8]} 5. d3 {[%clk 0:03:06]}
5... b5 {[%clk 0:02:59.6]} 6. Bb3 {[%clk 0:03:06.9]} 6... Be7 {[%clk 0:03:01]}
7. O-O {[%clk 0:03:07.8]} 7... O-O {[%clk 0:03:01.4]} 8. Re1 {[%clk 0:02:52.9]}
8... d6 {[%clk 0:03:01.8]} 9. c3 {[%clk 0:02:51.1]} 9... Na5 {[%clk 0:03:00.7]}
10. Bc2 {[%clk 0:02:52]} 10... c5 {[%clk 0:03:02.2]} 11. Nbd2 {[%clk 0:02:46.2]}
11... Re8 {[%clk 0:03:03]} 12. Nf1 {[%clk 0:02:45.4]} 12... Bf8 {[%clk
0:03:04.5]} 13. a4 {[%clk 0:02:43.6]} 13... b4 {[%clk 0:03:01.1]} 14. h3 {[%clk
0:02:37.6]} 14... Rb8 {[%clk 0:03:00.2]} 15. Ne3 {[%clk 0:02:35.7]} 15... bxc3
{[%clk 0:03:00.2]} 16. bxc3 {[%clk 0:02:36.6]} 16... Be6 {[%clk 0:03:01.7]} 17.
d4 {[%clk 0:02:16.8]} 17... exd4 {[%clk 0:02:52.9]} 18. cxd4 {[%clk 0:02:18.7]}
18... Nb3 {[%clk 0:02:48.3]} 19. Rb1 {[%clk 0:02:16.7]} 19... Nxc1 {[%clk
0:02:37.8]} 20. Rxc1 {[%clk 0:02:16.1]} 20... cxd4 {[%clk 0:02:30]} 21. Nxd4
{[%clk 0:02:16.6]} 21... Bd7 {[%clk 0:02:30.5]} 22. Qf3 {[%clk 0:02:11.7]} 22...
Qa5 {[%clk 0:02:23.9]} 23. Ndf5 {[%clk 0:02:04.9]} 23... Rb4 {[%clk 0:01:54.6]}
24. Nh6+ {[%clk 0:01:55.7]} 24... gxh6 {[%clk 0:01:55.4]} 25. Qxf6 {[%clk
0:01:56.5]} 25... Qe5 {[%clk 0:01:56.1]} 26. Qf3 {[%clk 0:01:56.1]} 26... h5
{[%clk 0:01:33.9]} 27. Nd5 {[%clk 0:01:54.7]} 27... Rb7 {[%clk 0:01:23.5]} 28.
Nf6+ {[%clk 0:01:53.9]} 28... Kh8 {[%clk 0:01:24.5]} 29. Nxe8 {[%clk 0:01:47.5]}
29... Bxe8 {[%clk 0:01:26.4]} 30. Bb3 {[%clk 0:01:42.7]} 30... Kg7 {[%clk
0:01:03.6]} 31. Bd5 {[%clk 0:01:41.2]} 31... Rb2 {[%clk 0:01:00.9]} 32. Rc7
{[%clk 0:01:37.6]} 32... Be7 {[%clk 0:01:00.2]} 33. Rb7 {[%clk 0:01:08.5]} 33...
Rxb7 {[%clk 0:00:53.6]} 34. Bxb7 {[%clk 0:01:09.1]} 34... Bxa4 {[%clk
0:00:55.2]} 35. Bxa6 {[%clk 0:01:07.8]} 35... Bc6 {[%clk 0:00:56.1]} 36. Bc4
{[%clk 0:01:05.1]} 36... d5 {[%clk 0:00:54.8]} 37. Bb3 {[%clk 0:00:49.8]} 37...
Bf6 {[%clk 0:00:51.7]} 38. Bc2 {[%clk 0:00:22.3]} 38... Qc3 {[%clk 0:00:52.4]}
39. Qxc3 {[%clk 0:00:22.6]} 39... Bxc3 {[%clk 0:00:53.3]} 40. Rc1 {[%clk
0:00:18.8]} 40... d4 {[%clk 0:00:44.1]} 41. Bd3 {[%clk 0:00:18.6]} 41... h4
{[%clk 0:00:41.7]} 42. f4 {[%clk 0:00:19.6]} 42... Bd7 {[%clk 0:00:20.3]} 43.
Kf2 {[%clk 0:00:16]} 43... Bd2 {[%clk 0:00:13.4]} 44. Rc7 {[%clk 0:00:16.5]}
44... Be3+ {[%clk 0:00:13.6]} 45. Kf3 {[%clk 0:00:17.4]} 45... Be6 {[%clk
0:00:13.9]} 46. Bc4 {[%clk 0:00:17.3]} 46... Kf6 {[%clk 0:00:11.9]} 47. e5+
{[%clk 0:00:16.2]} 47... Kg6 {[%clk 0:00:09.8]} 48. Bxe6 {[%clk 0:00:16.4]}
48... fxe6 {[%clk 0:00:11.7]} 49. Rd7 {[%clk 0:00:17.3]} 49... Bg1 {[%clk
0:00:08.9]} 50. Re7 {[%clk 0:00:15.2]} 50... Kf5 {[%clk 0:00:07.9]} 51. Rf7+
{[%clk 0:00:15.6]} 51... Kg6 {[%clk 0:00:09]} 52. Rf6+ {[%clk 0:00:16.7]} 52...
Kh5 {[%clk 0:00:09.5]} 53. Rxe6 {[%clk 0:00:17.1]} 53... h6 {[%clk 0:00:10.4]}
54. Rd6 {[%clk 0:00:17.1]} 54... Be3 {[%clk 0:00:09]} 55. Ke4 {[%clk 0:00:16.8]}
55... Bf2 {[%clk 0:00:08]} 56. Rxd4 {[%clk 0:00:16.1]} 56... Bg3 {[%clk
0:00:06.3]} 57. Rd8 {[%clk 0:00:16]} 57... Bf2 {[%clk 0:00:05.8]} 58. e6 {[%clk
0:00:16.5]} 58... Bc5 {[%clk 0:00:07.7]} 59. Rg8 {[%clk 0:00:16]} 59... Bd6
{[%clk 0:00:07.8]} 60. f5 {[%clk 0:00:16.4]} 60... Be5 {[%clk 0:00:07.3]} 61.
Rg4 {[%clk 0:00:14.1]} 61... Bf6 {[%clk 0:00:07.9]} 62. Kd5 {[%clk 0:00:14.6]}
62... Be7 {[%clk 0:00:08.9]} 63. Kc6 {[%clk 0:00:15.4]} 63... Bf6 {[%clk
0:00:10.2]} 64. Kd7 {[%clk 0:00:16.4]} 64... Bg5 {[%clk 0:00:11.6]} 65. Rxg5+
{[%clk 0:00:16.2]} 65... Kxg5 {[%clk 0:00:10.8]} 66. e7 {[%clk 0:00:17]} 66...
Kf4 {[%clk 0:00:12.7]} 67. e8=Q {[%clk 0:00:18]} 67... Kg3 {[%clk 0:00:14.6]}
68. Qg6+ {[%clk 0:00:18.9]} 68... Kh2 {[%clk 0:00:14.1]} 69. Qxh6 {[%clk
0:00:19.9]} 69... Kxg2 {[%clk 0:00:14.4]} 70. Qxh4 {[%clk 0:00:20.2]} 70... Kh1
{[%clk 0:00:15.2]} 1-0

[Event "*** Titled Tuesday Blitz"]
[Site "Chess.com"]
[Date "2018.11.06"]
[Round "10"]
[White "Manukyan_Artak"]
[Black "PaulfromSPb"]
[Result "1/2-1/2"]
[WhiteElo "2441"]
[BlackElo "2536"]
[TimeControl "180+2"]
[EndTime "15:22:31 PST"]
[Termination "Game drawn by agreement"]

1. e4 {[%clk 0:03:01.9]} 1... c5 {[%clk 0:03:00.4]} 2. Nf3 {[%clk 0:03:02.6]}
2... d6 {[%clk 0:03:01.3]} 3. Bb5+ {[%clk 0:03:03.1]} 3... Nd7 {[%clk
0:03:01.8]} 4. O-O {[%clk 0:03:03.7]} 4... Nf6 {[%clk 0:03:02.3]} 5. Re1 {[%clk
0:03:04.4]} 5... g6 {[%clk 0:03:01.3]} 6. c3 {[%clk 0:03:00.3]} 6... Bg7 {[%clk
0:02:52.2]} 7. d4 {[%clk 0:03:00.1]} 7... cxd4 {[%clk 0:02:51.2]} 8. cxd4 {[%clk
0:03:01.2]} 8... a6 {[%clk 0:02:52.1]} 9. Bd3 {[%clk 0:02:49.3]} 9... e5 {[%clk
0:02:52]} 10. dxe5 {[%clk 0:02:45.3]} 10... Nxe5 {[%clk 0:02:51.5]} 11. Bf4
{[%clk 0:02:38.6]} 11... Bg4 {[%clk 0:02:49.4]} 12. Be2 {[%clk 0:02:39.3]} 12...
Bxf3 {[%clk 0:02:45.8]} 13. Bxf3 {[%clk 0:02:40.1]} 13... O-O {[%clk 0:02:46.5]}
14. Nc3 {[%clk 0:02:40.3]} 14... Qb6 {[%clk 0:02:42.5]} 15. Bxe5 {[%clk
0:02:27.5]} 15... dxe5 {[%clk 0:02:42.8]} 16. Qb3 {[%clk 0:02:28.3]} 16... Qa7
{[%clk 0:02:33.8]} 17. Rad1 {[%clk 0:02:25.7]} 17... Rfd8 {[%clk 0:02:28]} 18.
h4 {[%clk 0:02:23.6]} 18... Bf8 {[%clk 0:02:27.3]} 19. Rxd8 {[%clk 0:02:12]}
19... Rxd8 {[%clk 0:02:27.7]} 20. Rd1 {[%clk 0:02:13.6]} 20... Rxd1+ {[%clk
0:02:22.1]} 21. Qxd1 {[%clk 0:02:11.9]} 21... Bc5 {[%clk 0:02:20.2]} 22. Qd2
{[%clk 0:02:06.8]} 22... Bd4 {[%clk 0:02:21.2]} 23. g3 {[%clk 0:01:29.5]} 23...
h5 {[%clk 0:02:20.9]} 24. Nd5 {[%clk 0:01:24.3]} 24... Kg7 {[%clk 0:02:11]} 25.
Nxf6 {[%clk 0:01:24.7]} 25... Kxf6 {[%clk 0:02:11.3]} 26. Kg2 {[%clk 0:01:25.7]}
26... Kg7 {[%clk 0:02:11.9]} 27. b3 {[%clk 0:01:25.9]} 27... Qc5 {[%clk
0:02:12.5]} 28. a4 {[%clk 0:01:20.9]} 28... Qa3 {[%clk 0:02:09.7]} 29. Qc2
{[%clk 0:01:19.7]} 29... Qa1 {[%clk 0:02:10.5]} 30. Be2 {[%clk 0:01:11.6]} 30...
Qe1 {[%clk 0:02:07.3]} 31. Bc4 {[%clk 0:01:12.1]} 31... Qb4 {[%clk 0:02:05.5]}
32. Qe2 {[%clk 0:01:09.5]} 32... Qd6 {[%clk 0:02:01.5]} 33. Qf3 {[%clk
0:01:06.6]} 33... f6 {[%clk 0:02:02]} 34. Bd5 {[%clk 0:01:07.1]} 34... Qb4
{[%clk 0:02:02.4]} 35. Bc4 {[%clk 0:01:04.6]} 35... b5 {[%clk 0:02:02.9]} 36.
axb5 {[%clk 0:01:05.3]} 36... axb5 {[%clk 0:02:04.3]} 37. Bf1 {[%clk 0:01:04.8]}
37... Qc5 {[%clk 0:02:04.1]} 38. Qe2 {[%clk 0:01:04.1]} 38... b4 {[%clk
0:02:01.3]} 39. Qf3 {[%clk 0:01:02.8]} 39... Qc2 {[%clk 0:02:00.9]} 40. Bc4
{[%clk 0:01:01.8]} 40... Qd2 {[%clk 0:02:00.4]} 41. Qe2 {[%clk 0:01:01.6]} 41...
Qc1 {[%clk 0:02:00.4]} 42. Bd5 {[%clk 0:01:01.9]} 42... Kh6 {[%clk 0:01:59.4]}
43. Qf3 {[%clk 0:00:58]} 43... Kg7 {[%clk 0:01:58.9]} 44. Qe2 {[%clk 0:00:59]}
44... Qa1 {[%clk 0:01:58.3]} 45. Qd2 {[%clk 0:00:52.7]} 45... Qc3 {[%clk
0:01:57.1]} 46. Qe2 {[%clk 0:00:52.3]} 46... Bb6 {[%clk 0:01:55.6]} 47. Bc4
{[%clk 0:00:48]} 47... Qd4 {[%clk 0:01:53.8]} 48. Qf3 {[%clk 0:00:48]} 48... Qc5
{[%clk 0:01:53.2]} 49. Qe2 {[%clk 0:00:47.9]} 49... f5 {[%clk 0:01:52.9]} 50.
exf5 {[%clk 0:00:47.5]} 50... gxf5 {[%clk 0:01:54.4]} 51. Qd2 {[%clk 0:00:42.9]}
51... Qe7 {[%clk 0:01:42.9]} 52. Qd5 {[%clk 0:00:36]} 52... Bc5 {[%clk
0:01:29.3]} 53. Qg8+ {[%clk 0:00:32.6]} 53... Kh6 {[%clk 0:01:30.5]} 54. Qh8+
{[%clk 0:00:33.4]} 54... Kg6 {[%clk 0:01:31.4]} 55. Qg8+ {[%clk 0:00:34.5]}
55... Qg7 {[%clk 0:01:28.2]} 56. Bf7+ {[%clk 0:00:34.8]} 56... Kf6 {[%clk
0:01:28.4]} 57. Qxg7+ {[%clk 0:00:36.2]} 57... Kxg7 {[%clk 0:01:29.2]} 58. Bxh5
{[%clk 0:00:38.1]} 58... Kf6 {[%clk 0:01:25.9]} 59. Be2 {[%clk 0:00:39.1]} 59...
Bd4 {[%clk 0:01:25.3]} 60. f3 {[%clk 0:00:39]} 60... Be3 {[%clk 0:01:24.4]} 61.
Bd3 {[%clk 0:00:40]} 61... Bd2 {[%clk 0:01:24.8]} 62. Kf2 {[%clk 0:00:40.9]}
62... Bc1 {[%clk 0:01:24.2]} 63. g4 {[%clk 0:00:39.5]} 63... e4 {[%clk
0:01:24.2]} 64. fxe4 {[%clk 0:00:38.1]} 64... fxg4 {[%clk 0:01:25.2]} 65. Kg3
{[%clk 0:00:39.4]} 65... Bd2 {[%clk 0:01:25]} 66. Kxg4 {[%clk 0:00:40.3]} 66...
Bc1 {[%clk 0:01:25.8]} 67. Bc4 {[%clk 0:00:41.2]} 67... Bd2 {[%clk 0:01:26.4]}
68. Bd5 {[%clk 0:00:42.5]} 68... Bc1 {[%clk 0:01:27.4]} 69. Kf3 {[%clk
0:00:43.2]} 69... Ke5 {[%clk 0:01:26.8]} 70. Kg4 {[%clk 0:00:42]} 70... Bd2
{[%clk 0:01:26]} 71. Kh5 {[%clk 0:00:42.6]} 71... Kf6 {[%clk 0:01:26.9]} 72. Kg4
{[%clk 0:00:43.7]} 72... Ke5 {[%clk 0:01:27.7]} 73. h5 {[%clk 0:00:43.1]} 73...
Bc1 {[%clk 0:01:27.5]} 74. Bc6 {[%clk 0:00:41.5]} 74... Bd2 {[%clk 0:01:27.7]}
75. Kf3 {[%clk 0:00:42.3]} 75... Bc1 {[%clk 0:01:28.7]} 76. Ke2 {[%clk
0:00:43.2]} 76... Kd4 {[%clk 0:01:29]} 77. Kf3 {[%clk 0:00:43.3]} 77... Bh6
{[%clk 0:01:29.1]} 78. Kg4 {[%clk 0:00:43]} 78... Ke5 {[%clk 0:01:30.1]} 79. Kg3
{[%clk 0:00:44]} 79... Bc1 {[%clk 0:01:30.3]} 80. Kf3 {[%clk 0:00:45.1]} 80...
Bh6 {[%clk 0:01:30.6]} 81. Ke2 {[%clk 0:00:45.9]} 81... Kd4 {[%clk 0:01:31.8]}
82. Kf3 {[%clk 0:00:47]} 82... Bc1 {[%clk 0:01:32.5]} 83. Kg3 {[%clk 0:00:45.5]}
83... Bh6 {[%clk 0:01:32.4]} 84. Kg4 {[%clk 0:00:46.8]} 84... Ke5 {[%clk
0:01:32.9]} 85. Bd5 {[%clk 0:00:46.5]} 85... Bc1 {[%clk 0:01:32.9]} 86. Kf3
{[%clk 0:00:47.8]} 86... Bh6 {[%clk 0:01:32.9]} 87. Ke2 {[%clk 0:00:49]} 87...
Kd4 {[%clk 0:01:33.9]} 88. Kf2 {[%clk 0:00:49.5]} 88... Bc1 {[%clk 0:01:33.9]}
89. Kg3 {[%clk 0:00:50.2]} 89... Ke5 {[%clk 0:01:34.7]} 90. Kg4 {[%clk
0:00:51.6]} 90... Bd2 {[%clk 0:01:35.4]} 91. Kf3 {[%clk 0:00:52.3]} 91... Bh6
{[%clk 0:01:36]} 92. Ke2 {[%clk 0:00:53.9]} 92... Kd4 {[%clk 0:01:36.9]} 93. Kd1
{[%clk 0:00:54.4]} 93... Bg5 {[%clk 0:01:36.4]} 94. Kc2 {[%clk 0:00:55.4]} 94...
Bh6 {[%clk 0:01:37.2]} 95. Kd1 {[%clk 0:00:56.4]} 95... Bg5 {[%clk 0:01:38.4]}
96. Ke2 {[%clk 0:00:57.8]} 96... Bh6 {[%clk 0:01:39.5]} 97. Kf3 {[%clk
0:00:59.1]} 97... Ke5 {[%clk 0:01:40.4]} 98. Bc4 {[%clk 0:00:58.7]} 98... Kd4
{[%clk 0:01:40.5]} 99. Bf1 {[%clk 0:00:59.7]} 99... Ke5 {[%clk 0:01:41.2]} 100.
Bh3 {[%clk 0:01:00.8]} 100... Kd4 {[%clk 0:01:42.2]} 101. Be6 {[%clk 0:01:02]}
101... Ke5 {[%clk 0:01:43.2]} 102. Bf7 {[%clk 0:01:03.2]} 102... Kd4 {[%clk
0:01:44.2]} 103. Ke2 {[%clk 0:01:04.4]} 103... Kxe4 {[%clk 0:01:44.2]} 1/2-1/2

[Event "*** Titled Tuesday Blitz"]
[Site "Chess.com"]
[Date "2018.11.06"]
[Round "10"]
[White "ChainsOfFantasia"]
[Black "Bauxi435"]
[Result "1-0"]
[WhiteElo "2359"]
[BlackElo "2423"]
[TimeControl "180+2"]
[EndTime "15:22:54 PST"]
[Termination "ChainsOfFantasia won on time"]

1. Nc3 {[%clk 0:03:01.9]} 1... d5 {[%clk 0:02:56.5]} 2. e3 {[%clk 0:02:56.3]}
2... c5 {[%clk 0:02:54]} 3. d4 {[%clk 0:02:56.4]} 3... Nc6 {[%clk 0:02:52.2]} 4.
Nf3 {[%clk 0:02:56.9]} 4... Bg4 {[%clk 0:02:44.2]} 5. Be2 {[%clk 0:02:41.2]}
5... e6 {[%clk 0:02:43.5]} 6. h3 {[%clk 0:02:37.1]} 6... Bxf3 {[%clk 0:02:43.4]}
7. Bxf3 {[%clk 0:02:39]} 7... cxd4 {[%clk 0:02:44.9]} 8. exd4 {[%clk 0:02:39.7]}
8... Nf6 {[%clk 0:02:46.1]} 9. O-O {[%clk 0:02:40.2]} 9... Be7 {[%clk
0:02:45.5]} 10. Ne2 {[%clk 0:02:33.6]} 10... O-O {[%clk 0:02:44.3]} 11. Ng3
{[%clk 0:02:34.4]} 11... b5 {[%clk 0:02:42.6]} 12. Re1 {[%clk 0:02:32.5]} 12...
Bd6 {[%clk 0:02:33.8]} 13. Qd3 {[%clk 0:02:27.3]} 13... Bxg3 {[%clk 0:02:18]}
14. fxg3 {[%clk 0:02:26.3]} 14... Qb6 {[%clk 0:02:19.5]} 15. Be3 {[%clk
0:02:23.9]} 15... a5 {[%clk 0:02:16]} 16. g4 {[%clk 0:02:23.3]} 16... Rfc8
{[%clk 0:02:14.1]} 17. g5 {[%clk 0:02:23]} 17... Nd7 {[%clk 0:02:14.9]} 18. a3
{[%clk 0:02:18.8]} 18... b4 {[%clk 0:02:10]} 19. a4 {[%clk 0:02:19.6]} 19... Nf8
{[%clk 0:02:08.9]} 20. h4 {[%clk 0:02:15.8]} 20... Ne7 {[%clk 0:02:03.3]} 21.
Re2 {[%clk 0:02:10.6]} 21... Nf5 {[%clk 0:02:03.9]} 22. Bf2 {[%clk 0:02:11.8]}
22... Nd6 {[%clk 0:02:03.9]} 23. h5 {[%clk 0:02:08.9]} 23... Nc4 {[%clk
0:02:02.3]} 24. Rb1 {[%clk 0:02:09.7]} 24... Rab8 {[%clk 0:02:01.8]} 25. Bg3
{[%clk 0:01:56.5]} 25... Rb7 {[%clk 0:02:00.6]} 26. Bg4 {[%clk 0:01:48]} 26...
b3 {[%clk 0:01:56]} 27. c3 {[%clk 0:01:47.4]} 27... Qc6 {[%clk 0:01:56.5]} 28.
g6 {[%clk 0:01:41.1]} 28... hxg6 {[%clk 0:01:54.9]} 29. hxg6 {[%clk 0:01:40.5]}
29... Nxg6 {[%clk 0:01:56.5]} 30. Bxe6 {[%clk 0:01:06.4]} 30... fxe6 {[%clk
0:01:30]} 31. Qxg6 {[%clk 0:01:04.3]} 31... e5 {[%clk 0:01:30.2]} 32. Qxc6
{[%clk 0:00:50.9]} 32... Rxc6 {[%clk 0:01:32.1]} 33. Bxe5 {[%clk 0:00:52.1]}
33... Nb6 {[%clk 0:01:18.6]} 34. Bf4 {[%clk 0:00:44.4]} 34... Nxa4 {[%clk
0:01:16.6]} 35. Ra1 {[%clk 0:00:45.2]} 35... Rc4 {[%clk 0:01:08.1]} 36. Bc1
{[%clk 0:00:44.1]} 36... Ra7 {[%clk 0:01:04.1]} 37. Re5 {[%clk 0:00:42.5]} 37...
Nb6 {[%clk 0:01:05.1]} 38. Bg5 {[%clk 0:00:39.3]} 38... a4 {[%clk 0:01:04.4]}
39. Bd8 {[%clk 0:00:39.5]} 39... Nd7 {[%clk 0:00:43.7]} 40. Rxd5 {[%clk
0:00:40]} 40... a3 {[%clk 0:00:40.9]} 41. Rxa3 {[%clk 0:00:33]} 41... Rxa3
{[%clk 0:00:39.3]} 42. bxa3 {[%clk 0:00:34.9]} 42... Rxc3 {[%clk 0:00:37.3]} 43.
Rb5 {[%clk 0:00:21.4]} 43... Kf7 {[%clk 0:00:34]} 44. a4 {[%clk 0:00:21.5]}
44... Rd3 {[%clk 0:00:28.2]} 45. d5 {[%clk 0:00:21.7]} 45... Ke8 {[%clk
0:00:26.9]} 46. Bg5 {[%clk 0:00:22.2]} 46... Ne5 {[%clk 0:00:27.7]} 47. a5
{[%clk 0:00:22.6]} 47... Ng4 {[%clk 0:00:27]} 48. Kf1 {[%clk 0:00:22]} 48... Kd7
{[%clk 0:00:25.4]} 49. a6 {[%clk 0:00:22.8]} 49... Rd1+ {[%clk 0:00:20.4]} 50.
Ke2 {[%clk 0:00:23]} 50... Ra1 {[%clk 0:00:22.3]} 51. Rxb3 {[%clk 0:00:24.1]}
51... Rxa6 {[%clk 0:00:22.8]} 52. Rb7+ {[%clk 0:00:26]} 52... Kd6 {[%clk
0:00:23.9]} 53. Rxg7 {[%clk 0:00:27.9]} 53... Kxd5 {[%clk 0:00:24.4]} 54. Bf4
{[%clk 0:00:26.2]} 54... Nf6 {[%clk 0:00:24.3]} 55. g4 {[%clk 0:00:22.3]} 55...
Ke4 {[%clk 0:00:22.8]} 56. Bd2 {[%clk 0:00:22.3]} 56... Re6 {[%clk 0:00:21.6]}
57. g5 {[%clk 0:00:18.4]} 57... Nd5 {[%clk 0:00:20.1]} 58. Rf7 {[%clk
0:00:15.9]} 58... Re7 {[%clk 0:00:19]} 59. Rf8 {[%clk 0:00:15.7]} 59... Rg7
{[%clk 0:00:18.6]} 60. Kf2 {[%clk 0:00:14.6]} 60... Ne7 {[%clk 0:00:18.6]} 61.
Kg3 {[%clk 0:00:14.8]} 61... Ke5 {[%clk 0:00:19.3]} 62. Kg4 {[%clk 0:00:15.8]}
62... Ke6 {[%clk 0:00:20.4]} 63. Bc3 {[%clk 0:00:16.5]} 63... Rh7 {[%clk
0:00:18.5]} 64. Rf6+ {[%clk 0:00:17.3]} 64... Kd7 {[%clk 0:00:19.2]} 65. Bb4
{[%clk 0:00:18.5]} 65... Rg7 {[%clk 0:00:18.5]} 66. Ra6 {[%clk 0:00:18]} 66...
Ke8 {[%clk 0:00:18.6]} 67. Ra8+ {[%clk 0:00:18]} 67... Kf7 {[%clk 0:00:17.6]}
68. Ra7 {[%clk 0:00:19.9]} 68... Ke6 {[%clk 0:00:19.1]} 69. Rb7 {[%clk
0:00:16.4]} 69... Rf7 {[%clk 0:00:14.8]} 70. g6 {[%clk 0:00:17]} 70... Nxg6
{[%clk 0:00:15.7]} 71. Rb6+ {[%clk 0:00:16.9]} 71... Kd5 {[%clk 0:00:16.6]} 72.
Rxg6 {[%clk 0:00:18.2]} 72... Rc7 {[%clk 0:00:17.9]} 73. Bd2 {[%clk 0:00:19]}
73... Ke4 {[%clk 0:00:18.8]} 74. Bf4 {[%clk 0:00:20.9]} 74... Rf7 {[%clk
0:00:19.5]} 75. Re6+ {[%clk 0:00:22]} 75... Kd5 {[%clk 0:00:21.1]} 76. Re8
{[%clk 0:00:23.5]} 76... Kd4 {[%clk 0:00:22.4]} 77. Rd8+ {[%clk 0:00:23.7]}
77... Kc5 {[%clk 0:00:23.6]} 78. Kf3 {[%clk 0:00:24.1]} 78... Re7 {[%clk
0:00:25]} 79. Bd6+ {[%clk 0:00:23.5]} 1-0